bitfinex/quotes_SOLUSD_20250131
["timestamp","ask_amount","ask_price","bid_price","bid_amount"]
[1738317750496,0.03,235.65,235.62,7.0441]
[1738317752387,0.03,235.65,235.63,0.63642179]
[1738317752587,0.03,235.65,235.63,219.93642179]
[1738317752787,0.03,235.65,235.63,219.3]
[1738317754399,0.03,235.65,235.64,0.63639688]
[1738317755299,0.03,235.65,235.64,4.88009688]
[1738317756109,0.03,235.65,235.64,0.63639688]
[1738317757817,0.03,235.65,235.64,219.93639688]
[1738317758115,0.03,235.65,235.64,219.3]
[1738317762818,0.03,235.65,235.64,225.6204]
[1738317765321,0.03,235.65,235.64,243.27594853]
[1738317768028,0.03,235.69,235.66,13.41184853]
[1738317768318,0.03,235.69,235.67,0.63627089]
[1738317769123,0.03,235.69,235.67,4.87937089]
[1738317769822,0.03,235.69,235.68,13.41184853]
[1738317770016,0.03,235.69,235.68,232.71184853]
[1738317770216,0.03,235.69,235.68,236.95484853]
[1738317776303,0.03,235.69,235.68,219.3]
[1738317779313,0.03,235.69,235.68,232.71184853]
[1738317779506,0.03,235.69,235.68,236.95484853]
[1738317781333,0.03,235.69,235.68,219.3]
[1738317787639,0.03,235.69,235.68,82.3]
[1738317803228,0.03,235.69,235.65,0.063]
[1738317816058,0.03,235.69,235.65,82.363]
[1738317820355,0.03,235.69,235.65,219.363]
[1738317829841,0.03,235.69,235.66,14.04819908]
[1738317835087,0.03,235.69,235.66,233.34819908]
[1738317835247,0.03,235.69,235.66,232.71184853]
[1738317838573,0.03,235.69,235.67,0.6363251]
[1738317841159,0.03,235.69,235.67,219.9363251]
[1738317841370,0.03,235.69,235.67,219.3]
[1738317854682,0.03,235.69,235.68,13.41184853]
[1738317858890,0.03,235.69,235.68,232.71184853]
[1738317861361,0.03,235.69,235.68,236.95484853]
[1738317870911,0.03,235.69,235.68,237.08033853]
[1738317874604,0.03,235.69,235.68,237.33131853]
[1738317877425,0.03,235.69,235.68,237.45680853]
[1738317882904,0.03,235.69,235.68,267.45680853]
[1738317884429,0.03,235.69,235.68,237.45680853]
[1738317885828,0.03,235.69,235.68,267.45680853]
[1738317889029,16.968555,235.87,235.82,1.0]
[1738317889236,66.1991619,236.03,235.88,13.53733853]
[1738317889237,0.4237,235.99,235.88,13.53733853]
[1738317889410,0.4237,235.97,235.9,13.41184853]
[1738317889605,0.03,235.93,235.89,0.63559945]
[1738317889812,0.03,235.93,235.88,82.3]
[1738317890233,0.03,235.93,235.88,219.3]
[1738317890732,0.03,235.93,235.89,0.63568553]
[1738317893140,0.03,235.93,235.88,219.3]
[1738317894537,0.03,235.93,235.88,223.5394]
[1738317894736,0.03,235.93,235.89,13.41184853]
[1738317896326,0.03,235.93,235.89,17.65094853]
[1738317896938,0.03,235.93,235.89,4.2391]
[1738317897932,0.03,235.93,235.89,17.65094853]
[1738317898932,0.03,235.93,235.9,17.65084853]
[1738317901448,0.03,235.93,235.92,239.77054853]
[1738317904033,0.03,235.93,235.92,235.53184853]
[1738317904257,0.03,235.93,235.92,232.71184853]
[1738317904428,0.03,235.93,235.92,235.53184853]
[1738317906148,0.03,235.93,235.92,222.12]
[1738317906347,0.03,235.93,235.92,82.3]
[1738317906653,0.03,235.93,235.89,137.0]
[1738317906829,0.03,235.93,235.85,219.3]
[1738317907032,20.03,235.93,235.85,219.3]
[1738317907345,21.00398949,235.93,235.85,2.82]
[1738317907847,21.4834,235.92,235.85,2.82]
[1738317908148,1.4834,235.92,235.85,2.82]
[1738317911537,1.0,235.89,235.77,137.0]
[1738317911736,1.0,235.89,235.78,2.82]
[1738317911954,1.0,235.89,235.79,2.82]
[1738317912760,1.0,235.87,235.8,2.82]
[1738317913530,20.0,235.83,235.8,2.82]
[1738317913754,20.0,235.83,235.76,82.3]
[1738317913948,20.0,235.83,235.76,85.12]
[1738317914642,0.424,235.82,235.76,82.3]
[1738317914846,0.424,235.82,235.76,85.12]
[1738317915045,1.4841,235.82,235.76,85.12]
[1738317915349,1.4841,235.82,235.76,82.3]
[1738317915655,1.4841,235.82,235.76,85.12]
[1738317916045,23.49663529,235.82,235.74,2.82]
[1738317916238,1.0,235.81,235.74,2.82]
[1738317916839,1.0,235.81,235.7,82.3]
[1738317917475,1.0,235.78,235.71,2.82]
[1738317917799,1.0,235.78,235.7,85.12]
[1738317918060,0.4241,235.77,235.7,85.12]
[1738317918266,0.4241,235.77,235.7,2.82]
[1738317918571,1.4844,235.77,235.7,2.82]
[1738317919079,2.45838949,235.77,235.7,2.82]
[1738317919376,20.0,235.74,235.7,2.82]
[1738317920849,0.4242,235.73,235.7,2.82]
[1738317924802,1.4841,235.81,235.7,2.82]
[1738317925099,20.0,235.8,235.7,2.82]
[1738317925480,1.4841,235.81,235.7,2.82]
[1738317925972,1.0601,235.81,235.7,2.82]
[1738317927188,20.0,235.8,235.7,2.82]
[1738317928270,0.4241,235.79,235.7,2.82]
[1738317938889,0.4241,235.79,235.7,7.69885802]
[1738317939084,0.4241,235.79,235.7,3.45625802]
[1738317939299,1.4843,235.79,235.7,2.82]
[1738317940990,1.5143,235.79,235.7,2.82]
[1738317947920,0.4541,235.79,235.7,222.75628953]
[1738317948121,0.03,235.79,235.71,13.41184853]
[1738317948291,0.03,235.79,235.73,13.41184853]
[1738317948490,0.03,235.79,235.75,13.41184853]
[1738317948701,0.03,235.79,235.76,0.63603062]
[1738317949713,0.03,235.79,235.76,4.87743062]
[1738317953416,0.03,235.79,235.76,0.63603062]
[1738317953813,0.03,235.79,235.76,219.93603062]
[1738317954111,0.03,235.79,235.76,219.3]
[1738317956138,0.03,235.79,235.77,0.63603369]
[1738317959734,0.4899,236.01,235.82,20.0]
[1738317960017,0.4899,236.01,235.84,13.41184853]
[1738317960221,0.4238,235.96,235.85,0.63568761]
[1738317960810,20.0,235.99,235.85,0.63568761]
[1738317961000,1.0593,236.0,235.85,0.63568761]
[1738317961724,0.4237,235.98,235.87,13.41184853]
[1738317961897,0.4237,235.98,235.87,150.41184853]
[1738317963531,20.97398949,235.99,235.87,137.0]
[1738317963701,20.97398949,235.99,235.88,2.8]
[1738317963901,21.97398949,235.99,235.88,2.8]
[1738317964123,21.05497393,235.98,235.88,2.8]
[1738317964300,1.05497393,235.98,235.88,2.8]
[1738317964507,21.97398949,235.99,235.88,2.8]
[1738317965308,20.0,235.98,235.87,137.0]
[1738317965609,20.0,235.98,235.88,2.8]
[1738317965805,1.4831,235.97,235.88,2.8]
[1738317970376,1.0,235.95,235.88,2.8]
[1738317970650,1.97398949,235.95,235.83,82.3]
[1738317970954,2.00398949,235.93,235.84,2.8]
[1738317971444,1.03,235.93,235.84,2.8]
[1738317972338,0.03,235.93,235.84,2.8]
[1738317972633,1.00398949,235.93,235.83,82.3]
[1738317972848,1.00398949,235.93,235.84,2.8]
[1738317973011,1.0,235.91,235.84,2.8]
[1738317973838,20.0,235.89,235.84,2.8]
[1738317974038,1.4837,235.88,235.84,2.8]
[1738317974768,0.4239,235.88,235.85,2.8]
[1738317975964,0.03,235.93,235.85,2.8]
[1738317978784,0.03,235.93,235.86,0.63586701]
[1738317979476,0.03,235.93,235.85,2.8]
[1738317980657,0.03,235.93,235.85,222.1]
[1738317981980,0.03,235.93,235.86,0.63585551]
[1738317983157,0.03,235.93,235.85,222.1]
[1738317986556,0.03,235.93,235.85,85.1]
[1738317989290,0.03,235.93,235.86,0.63583265]
[1738317992491,0.03,235.93,235.86,219.93583265]
[1738317992786,0.03,235.93,235.86,219.3]
[1738317993886,0.03,235.93,235.88,13.41184853]
[1738317994074,0.03,235.93,235.89,0.63568945]
[1738317996095,0.03,235.93,235.88,13.41184853]
[1738317996783,0.03,235.93,235.86,220.8883]
[1738317996967,0.03,235.93,235.86,219.3]
[1738317997152,0.03,235.93,235.87,2.8]
[1738317998593,0.03,235.93,235.86,82.3]
[1738317998766,0.03,235.93,235.86,85.1]
[1738317999882,1.5134,235.93,235.86,85.1]
[1738318000685,1.0896,235.93,235.86,85.1]
[1738318013197,1.0896,235.93,235.86,2.8]
[1738318013501,21.0896,235.93,235.86,2.8]
[1738318015191,21.5134,235.93,235.86,2.8]
[1738318020891,20.0,235.92,235.86,2.8]
[1738318021083,5.60658949,235.93,235.86,2.8]
[1738318021465,20.0,235.92,235.86,2.8]
[1738318021694,0.4238,235.91,235.86,2.8]
[1738318022092,1.4835,235.91,235.86,2.8]
[1738318023996,1.0597,235.91,235.86,2.8]
[1738318028391,20.0,235.89,235.81,82.3]
[1738318028578,20.97398949,235.89,235.81,82.3]
[1738318028779,21.97398949,235.89,235.8,0.063]
[1738318028979,1.4837,235.88,235.8,0.063]
[1738318030005,0.97398949,235.87,235.8,0.063]
[1738318031405,1.97398949,235.87,235.8,0.063]
[1738318031903,1.4838,235.86,235.8,0.063]
[1738318032981,0.97398949,235.85,235.8,0.063]
[1738318033189,1.97398949,235.85,235.8,0.063]
[1738318033988,1.484,235.84,235.8,0.063]
[1738318034291,2.45798949,235.84,235.8,0.063]
[1738318034995,22.45798949,235.84,235.8,0.063]
[1738318035699,23.45798949,235.84,235.8,0.063]
[1738318036215,13.83584853,235.81,235.8,0.063]
[1738318040290,14.87012647,235.81,235.8,0.063]
[1738318040995,15.87012647,235.81,235.8,0.063]
[1738318041896,1.97398949,235.75,235.69,0.063]
[1738318042206,1.97398949,235.71,235.65,0.063]
[1738318043494,21.4848,235.7,235.65,0.063]
[1738318045593,0.4242,235.7,235.65,0.063]
[1738318046391,0.4242,235.73,235.65,0.063]
[1738318046591,20.0,235.72,235.65,0.063]
[1738318047303,20.4242,235.72,235.65,0.063]
[1738318047493,21.46228384,235.72,235.65,0.063]
[1738318047797,20.4242,235.72,235.65,0.063]
[1738318058815,1.698255,235.74,235.66,1.6019]
[1738318059120,1.698255,235.74,235.67,6.2402]
[1738318059321,1.698255,235.74,235.68,4.243]
[1738318060316,0.03,235.72,235.68,4.243]
[1738318063741,0.03,235.72,235.68,223.543]
[1738318070231,0.03,235.72,235.68,219.3]
[1738318070909,0.03,235.72,235.69,2.8]
[1738318072113,0.03,235.72,235.68,219.3]
[1738318072315,0.03,235.72,235.69,2.8]
[1738318073030,0.03,235.72,235.68,219.363]
[1738318075637,0.03,235.72,235.68,82.363]
[1738318083238,0.03,235.72,235.68,0.063]
[1738318090457,0.97398949,235.67,235.55,1.6661]
[1738318091733,1.4851,235.66,235.55,4.4661]
[1738318095250,2.5361845,235.66,235.55,4.4661]
[1738318096450,22.5361845,235.66,235.56,82.363]
[1738318096954,0.97398949,235.64,235.56,82.363]
[1738318097651,20.0,235.63,235.56,82.363]
[1738318099039,1.4854,235.62,235.56,82.363]
[1738318099239,1.4854,235.62,235.56,0.063]
[1738318101151,1.061,235.62,235.56,0.063]
[1738318103770,1.4854,235.62,235.56,0.063]
[1738318115572,0.03,235.63,235.56,4.308]
[1738318115790,0.03,235.63,235.58,1.5179]
[1738318120183,0.03,235.63,235.58,220.8179]
[1738318131906,0.03,235.63,235.58,220.8809]
[1738318138010,0.03,235.63,235.58,83.8809]
[1738318140713,0.03,235.63,235.59,14.04842348]
[1738318143417,0.03,235.63,235.59,18.29292348]
[1738318143919,0.03,235.63,235.59,237.59292348]
[1738318144217,0.03,235.63,235.59,236.95634853]
[1738318144411,0.03,235.63,235.59,237.01934853]
[1738318145111,0.03,235.63,235.59,219.363]
[1738318145701,0.03,235.63,235.59,222.163]
[1738318149514,0.03,235.63,235.59,82.363]
[1738318155835,0.03,235.63,235.59,82.99956663]
[1738318156630,0.03,235.63,235.59,87.24416663]
[1738318156810,0.03,235.63,235.59,86.6076]
[1738318157012,0.03,235.63,235.6,0.63648824]
[1738318158834,0.03,235.63,235.6,219.93648824]
[1738318159031,0.03,235.63,235.6,219.3]
[1738318166657,0.03,235.63,235.61,0.63647306]
[1738318166829,0.03,235.63,235.62,13.41184853]
[1738318167031,0.4542,235.72,235.64,13.41184853]
[1738318167337,0.4542,235.72,235.65,0.6363136]
[1738318168634,0.03,235.72,235.65,0.6363136]
[1738318170238,0.03,235.72,235.64,232.71184853]
[1738318170630,0.03,235.72,235.64,236.95554853]
[1738318172152,0.03,235.72,235.64,232.71184853]
[1738318172321,0.03,235.72,235.64,219.3]
[1738318175020,0.03,235.72,235.65,2.8]
[1738318176659,0.03,235.72,235.65,85.1]
[1738318180636,20.0,235.7,235.65,82.3]
[1738318181654,1.4849,235.69,235.65,82.3]
[1738318185551,1.4849,235.69,235.63,0.063]
[1738318190231,1.4851,235.67,235.63,0.063]
[1738318196762,20.0,235.66,235.63,0.063]
[1738318199962,0.4243,235.65,235.63,0.063]
[1738318203465,1.0608,235.67,235.63,0.063]
[1738318205177,1.4851,235.67,235.63,0.063]
[1738318214398,1.5151,235.67,235.63,0.063]
[1738318226792,20.0,235.64,235.63,0.063]
[1738318226997,20.4243,235.64,235.63,0.063]
[1738318229206,0.4243,235.66,235.64,1.601]
[1738318229408,5.03,235.67,235.64,1.601]
[1738318229704,5.4543,235.67,235.64,1.601]
[1738318230021,3.399,235.64,235.63,82.363]
[1738318230877,3.399,235.64,235.63,219.99944535]
[1738318231183,3.399,235.64,235.63,230.2367]
[1738318231803,1.7324,235.64,235.63,243.64854853]
[1738318232902,1.7324,235.64,235.63,245.21614853]
[1738318236101,1.7324,235.64,235.63,90.5604]
[1738318236284,2.1567,235.64,235.63,90.5604]
[1738318236478,2.1567,235.64,235.63,88.9928]
[1738318237183,1.7324,235.64,235.63,88.9928]
[1738318239610,1.7324,235.64,235.63,93.2367]
[1738318242095,1.7324,235.64,235.63,230.2367]
[1738318242999,1.7324,235.64,235.63,225.9928]
[1738318244615,1.7324,235.64,235.63,219.363]
[1738318244930,2.1567,235.64,235.63,219.363]
[1738318246332,1.7324,235.64,235.63,219.363]
[1738318247909,1.7324,235.64,235.63,82.363]
[1738318248504,1.7624,235.64,235.63,82.363]
[1738318264117,1.7624,235.64,235.63,87.24334284]
[1738318264435,1.7624,235.64,235.63,86.6069]
[1738318264735,1.7624,235.64,235.63,237.65509363]
[1738318264913,1.7624,235.64,235.63,237.01874853]
[1738318266506,1.7624,235.64,235.63,219.363]
[1738318267546,1.7624,235.64,235.63,222.163]
[1738318268950,1.7624,235.64,235.63,85.163]
[1738318293679,22.1867,235.64,235.63,82.363]
[1738318298476,22.1867,235.64,235.63,0.063]
[1738318311664,23.2476,235.64,235.6,0.063]
[1738318311858,20.0,235.61,235.6,0.063]
[1738318312796,20.4244,235.61,235.6,0.063]
[1738318314294,0.4244,235.61,235.6,0.063]
[1738318315395,20.0,235.63,235.6,0.063]
[1738318315566,0.4244,235.62,235.6,0.063]
[1738318316893,22.8233,235.64,235.6,0.063]
[1738318316894,0.4243,235.63,235.6,0.063]
[1738318321197,0.97398949,235.62,235.6,0.063]
[1738318321706,13.41184853,235.61,235.6,0.063]
[1738318322507,13.83624853,235.61,235.6,0.063]
[1738318333748,0.4244,235.61,235.6,0.063]
[1738318334036,20.4244,235.61,235.6,0.063]
[1738318345546,0.4244,235.61,235.6,0.063]
[1738318348246,0.4543,235.63,235.6,0.063]
[1738318350055,0.03,235.63,235.6,0.063]
[1738318356847,5.03,235.63,235.6,0.063]
[1738318359851,10.03,235.63,235.6,0.063]
[1738318360052,0.4244,235.62,235.6,0.063]
[1738318381547,10.03,235.63,235.6,82.9995778]
[1738318381752,10.03,235.63,235.6,82.363]
[1738318381952,10.4543,235.63,235.6,82.363]
[1738318388076,10.4543,235.63,235.6,82.363]
[1738318403384,10.03,235.63,235.6,82.363]
[1738318410701,10.4544,235.63,235.6,82.363]
[1738318428397,10.03,235.63,235.6,82.363]
[1738318430596,15.03,235.63,235.6,82.363]
[1738318431582,15.4544,235.63,235.6,82.363]
[1738318432084,20.4544,235.63,235.6,82.363]
[1738318498231,25.4544,235.63,235.6,82.363]
[1738318499932,30.4544,235.63,235.6,82.363]
[1738318505257,30.03,235.63,235.6,82.363]
[1738318506659,30.4543,235.63,235.6,82.363]
[1738318508335,30.4543,235.63,235.62,312.0]
[1738318509458,30.4543,235.63,235.62,394.3]
[1738318512161,30.4543,235.63,235.62,82.3]
[1738318513661,30.03,235.63,235.62,82.3]
[1738318515264,30.03,235.63,235.62,394.3]
[1738318515463,30.03,235.63,235.62,531.3]
[1738318520246,30.03,235.63,235.62,535.5441]
[1738318520451,30.03,235.63,235.62,548.95594853]
[1738318522471,10.0,235.63,235.62,418.98094853]
[1738318522770,0.03,235.63,235.62,555.98094853]
[1738318523660,1.7624,235.64,235.63,13.41184853]
[1738318523861,1.7624,235.64,235.63,14.04809046]
[1738318524668,0.7624,235.64,235.63,18.29199046]
[1738318526877,0.7624,235.64,235.63,330.29199046]
[1738318527070,0.7624,235.64,235.63,329.65574853]
[1738318527370,0.7624,235.64,235.63,548.95574853]
[1738318530069,0.7624,235.64,235.63,236.95574853]
[1738318532965,0.7624,235.64,235.63,239.73574853]
[1738318533149,0.7624,235.64,235.63,236.95574853]
[1738318533349,0.7624,235.64,235.63,239.73574853]
[1738318535778,0.7624,235.64,235.63,219.3]
[1738318535972,0.7624,235.64,235.63,222.08]
[1738318536160,1.1867,235.64,235.63,82.3]
[1738318540575,21.1867,235.64,235.63,82.3]
[1738318542084,21.1867,235.64,235.62,0.063]
[1738318545773,0.7624,235.64,235.62,0.063]
[1738318548093,0.7624,235.64,235.62,82.363]
[1738318551488,5.7624,235.64,235.62,82.363]
[1738318553698,6.1867,235.64,235.62,82.363]
[1738318554371,5.7624,235.64,235.63,0.63652863]
[1738318554570,5.7624,235.64,235.63,14.04837716]
[1738318556095,5.7624,235.64,235.63,18.29227716]
[1738318557882,5.7624,235.64,235.63,237.59227716]
[1738318558075,5.7624,235.64,235.63,236.95574853]
[1738318559684,5.7624,235.64,235.63,238.08123853]
[1738318559885,5.03,235.67,235.66,34.41184853]
[1738318560094,5.03,235.67,235.66,254.34798285]
[1738318560297,5.03,235.67,235.66,253.71184853]
[1738318561098,5.03,235.67,235.66,252.71184853]
[1738318562587,5.03,235.67,235.66,256.95524853]
[1738318564997,10.03,235.67,235.66,256.95524853]
[1738318566106,10.03,235.67,235.66,267.14523853]
[1738318566416,0.03,235.67,235.66,267.14523853]
[1738318567314,0.03,235.67,235.66,270.27747021]
[1738318568002,0.03,235.67,235.66,582.27747021]
[1738318571812,0.03,235.69,235.68,19.65484853]
[1738318572011,0.03,235.69,235.68,20.29089109]
[1738318573097,0.03,235.69,235.68,23.42312277]
[1738318573607,0.03,235.69,235.68,23.54861277]
[1738318573904,0.03,235.69,235.68,23.67410277]
[1738318574112,0.03,235.69,235.68,36.40410277]
[1738318575107,0.03,235.69,235.68,348.40410277]
[1738318575291,0.03,235.69,235.68,347.76806021]
[1738318576611,0.03,235.72,235.71,15.53733853]
[1738318576809,0.03,235.72,235.71,160.19579219]
[1738318576998,0.03,235.72,235.71,159.55983853]
[1738318577199,0.03,235.72,235.71,162.69207021]
[1738318578110,0.03,235.72,235.71,161.56658021]
[1738318578914,0.03,235.72,235.71,162.56658021]
[1738318579101,0.03,235.72,235.71,161.56658021]
[1738318579813,0.03,235.72,235.71,474.56658021]
[1738318580715,0.03,235.72,235.71,556.80658021]
[1738318581311,5.03,235.72,235.71,556.80658021]
[1738318581516,0.03,235.72,235.71,556.80658021]
[1738318585213,0.03,235.72,235.71,555.80658021]
[1738318585704,0.06,235.72,235.71,555.80658021]
[1738318587298,0.06,235.72,235.71,547.78408021]
[1738318587515,0.06,235.72,235.71,225.15223168]
[1738318588300,0.06,235.72,235.71,222.37223168]
[1738318588899,0.06,235.72,235.71,225.15223168]
[1738318589104,0.4842,235.72,235.71,88.15223168]
[1738318589624,0.4842,235.72,235.71,85.37223168]
[1738318590908,0.4842,235.72,235.71,82.24]
[1738318591304,0.4842,235.72,235.7,2.78]
[1738318591624,1.6012,235.71,235.69,0.063]
[1738318594121,2.0254,235.71,235.69,0.063]
[1738318598530,2.0254,235.71,235.69,82.303]
[1738318608357,0.4242,235.71,235.69,82.303]
[1738318620250,0.06,235.72,235.69,82.303]
[1738318620552,0.06,235.72,235.69,219.303]
[1738318621549,0.4842,235.72,235.69,82.303]
[1738318623538,0.4842,235.72,235.69,0.063]
[1738318623743,20.4842,235.72,235.69,0.063]
[1738318624056,21.52917084,235.72,235.69,0.063]
[1738318624532,1.6397,235.71,235.69,0.063]
[1738318625658,0.4242,235.7,235.69,0.063]
[1738318630161,20.0,235.66,235.63,0.063]
[1738318630359,20.0,235.67,235.63,0.063]
[1738318631258,1.4849,235.69,235.63,0.063]
[1738318631634,21.4849,235.69,235.63,0.063]
[1738318633664,1.4849,235.69,235.63,0.063]
[1738318637258,1.4849,235.69,235.63,82.303]
[1738318644067,1.5149,235.69,235.63,82.303]
[1738318644858,0.4542,235.69,235.63,82.303]
[1738318646762,0.03,235.69,235.63,82.303]
[1738318646949,0.03,235.69,235.64,0.63645013]
[1738318647153,0.03,235.69,235.65,1.5221]
[1738318649565,0.06,235.72,235.67,8.1703]
[1738318649766,0.06,235.72,235.68,0.63614985]
[1738318649952,0.06,235.72,235.69,13.41184853]
[1738318650275,0.06,235.72,235.7,3.45611687]
[1738318651563,0.06,235.72,235.71,4.2425]
[1738318652552,0.06,235.72,235.71,316.2425]
[1738318655078,0.06,235.72,235.71,535.4825]
[1738318656572,0.06,235.72,235.71,556.60054853]
[1738318659075,0.06,235.72,235.71,226.9462]
[1738318659270,0.06,235.72,235.71,229.7862]
[1738318660076,0.06,235.72,235.71,226.9462]
[1738318660285,0.06,235.72,235.71,229.7862]
[1738318664389,0.06,235.72,235.71,225.3013]
[1738318664563,0.06,235.72,235.71,228.1213]
[1738318666681,0.06,235.72,235.71,219.24]
[1738318666879,0.06,235.72,235.71,222.06]
[1738318667075,0.06,235.72,235.71,85.06]
[1738318667277,0.4842,235.72,235.71,85.06]
[1738318667664,0.4842,235.72,235.71,82.24]
[1738318689401,20.4842,235.72,235.69,0.063]
[1738318689591,13.41184853,235.71,235.69,0.063]
[1738318690705,0.4242,235.7,235.69,0.063]
[1738318691206,13.83604853,235.7,235.69,0.063]
[1738318699521,13.83604853,235.7,235.63,82.303]
[1738318699522,20.0,235.66,235.63,82.303]
[1738318699812,13.41184853,235.65,235.63,0.063]
[1738318701192,33.41184853,235.64,235.63,0.063]
[1738318701394,33.83614853,235.64,235.63,0.063]
[1738318709020,20.0,235.6,235.56,0.063]
[1738318709227,13.41184853,235.58,235.56,0.063]
[1738318709402,14.38583802,235.58,235.56,0.063]
[1738318710229,14.38583802,235.58,235.56,0.00067]
[1738318710230,13.83634853,235.57,235.56,0.00067]
[1738318717831,20.97398949,235.53,235.52,0.063]
[1738318718130,20.0,235.49,235.44,0.063]
[1738318719204,0.4246,235.48,235.44,0.063]
[1738318720113,20.0,235.49,235.44,0.063]
[1738318720836,0.4246,235.5,235.44,0.063]
[1738318721133,20.0,235.51,235.44,0.063]
[1738318721430,20.4246,235.51,235.44,0.063]
[1738318723310,20.4246,235.51,235.44,82.303]
[1738318725040,13.41184853,235.5,235.44,82.303]
[1738318725218,0.4246,235.5,235.44,82.303]
[1738318733661,1.4861,235.5,235.44,82.303]
[1738318733861,20.0,235.47,235.44,82.303]
[1738318734931,0.4247,235.46,235.44,82.303]
[1738318736462,14.47334853,235.5,235.44,82.303]
[1738318736765,20.0,235.47,235.44,82.303]
[1738318738062,20.0,235.47,235.45,0.063]
[1738318738358,13.41184853,235.46,235.45,0.063]
[1738318738654,13.83654853,235.46,235.45,0.063]
[1738318740253,15.81053802,235.46,235.45,0.063]
[1738318740956,13.83654853,235.46,235.45,0.063]
[1738318743940,80.6,235.47,235.45,0.063]
[1738318743941,25.51,235.58,235.53,843.56963846]
[1738318744254,15.96674209,235.54,235.53,737.35389304]
[1738318744762,15.96674209,235.54,235.53,710.14889304]
[1738318744945,15.96674209,235.54,235.53,708.56389304]
[1738318745266,15.96674209,235.54,235.53,699.24689304]
[1738318745431,15.96674209,235.54,235.53,681.53889305]
[1738318745636,16.39124209,235.54,235.53,681.53889305]
[1738318745844,16.39124209,235.54,235.53,671.47889306]
[1738318746152,23.27759062,235.54,235.53,665.87689307]
[1738318748962,23.27759062,235.54,235.53,655.96889308]
[1738318749160,23.27759062,235.54,235.53,641.44493466]
[1738318749359,23.27759062,235.54,235.53,597.20293466]
[1738318749536,23.27759062,235.54,235.53,595.15293467]
[1738318749746,23.27759062,235.54,235.53,574.82193467]
[1738318750063,23.27759062,235.54,235.53,568.59893467]
[1738318751264,23.27759062,235.54,235.53,563.34193468]
[1738318751742,23.27759062,235.54,235.53,558.58393468]
[1738318751944,23.27759062,235.54,235.53,551.03393468]
[1738318752134,23.27759062,235.54,235.53,514.57593468]
[1738318752341,23.27759062,235.54,235.53,507.09718468]
[1738318752555,23.27759062,235.54,235.53,494.72918468]
[1738318752762,24.90969062,235.54,235.53,463.11118468]
[1738318753058,24.90969062,235.54,235.53,340.94068433]
[1738318753237,24.90969062,235.54,235.53,234.73236693]
[1738318753646,24.90969062,235.54,235.53,128.52404953]
[1738318754065,24.90969062,235.54,235.53,119.92404953]
[1738318754244,24.90969062,235.54,235.53,107.72504953]
[1738318754454,24.93969062,235.54,235.53,95.37804953]
[1738318754649,24.93969062,235.54,235.53,85.77804953]
[1738318754966,24.93969062,235.54,235.53,8.56]
[1738318755164,50.41969062,235.54,235.53,8.56]
[1738318756264,23.88804853,235.54,235.53,8.56]
[1738318760849,24.34658846,235.54,235.53,8.56]